bitfinex-derivatives/quotes_BTCF0:USTF0_20250411
["timestamp","ask_amount","ask_price","bid_price","bid_amount"]
[1744345521844,0.0311,81011.0,81010.0,0.19554256]
[1744345522542,0.0313,81017.0,81010.0,0.07511793]
[1744345522751,0.0639,81017.0,81016.0,0.1235163]
[1744345523852,0.0966,81017.0,81016.0,0.1235163]
[1744345524255,0.2201148,81017.0,81016.0,0.1235163]
[1744345528948,0.1235422,80999.0,80998.0,0.00018528]
[1744345529644,0.1235605,80987.0,80978.0,0.4225866]
[1744345529845,0.0617751,80994.0,80991.0,0.1235531]
[1744345529846,0.1235538,80992.0,80991.0,0.1235531]
[1744345530551,0.1855538,80992.0,80991.0,0.1235531]
[1744345530953,0.062,80992.0,80991.0,0.1235531]
[1744345532254,0.1235605,80987.0,80986.0,0.22064468]
[1744345532560,0.1235651,80984.0,80977.0,0.1235744]
[1744345532760,0.1235651,80984.0,80975.0,0.061789]
[1744345532957,0.1235651,80984.0,80978.0,0.1235735]
[1744345533259,0.1235651,80984.0,80979.0,0.1235721]
[1744345533761,0.1235651,80984.0,80973.0,0.3608]
[1744345533953,0.1235651,80984.0,80975.0,0.1235783]
[1744345534261,0.1235651,80984.0,80977.0,0.1235753]
[1744345537255,0.1235651,80984.0,80978.0,0.1235741]
[1744345537451,0.4843651,80984.0,80971.0,0.000494]
[1744345538263,0.4843651,80984.0,80971.0,0.0622864]
[1744345538865,0.4843651,80984.0,80974.0,0.1235799]
[1744345539571,0.4843651,80984.0,80971.0,0.000494]
[1744345539868,0.4843651,80984.0,80973.0,0.1235818]
[1744345540269,0.4843651,80984.0,80974.0,0.12358]
[1744345540464,0.4843651,80984.0,80975.0,0.1235783]
[1744345540970,0.4843651,80984.0,80971.0,0.0622862]
[1744345542869,0.4843651,80984.0,80971.0,0.000494]
[1744345543369,0.4843651,80984.0,80972.0,0.123583]
[1744345543970,0.4843651,80984.0,80973.0,0.033]
[1744345545074,0.1235651,80984.0,80973.0,0.033]
[1744345545273,0.4843651,80984.0,80973.0,0.033]
[1744345546169,0.4843651,80984.0,80971.0,0.000494]
[1744345548475,0.1235834,80972.0,80971.0,0.000494]
[1744345548778,0.1236078,80956.0,80955.0,0.1236092]
[1744345549073,0.1236078,80956.0,80955.0,0.1865092]
[1744345550089,0.1236078,80956.0,80955.0,0.19566391]
[1744345550286,0.061803,80958.0,80957.0,0.1236063]
[1744345550481,0.1566944,80969.0,80963.0,0.1235972]
[1744345550687,0.0617925,80971.0,80963.0,0.4843972]
[1744345550887,0.1235873,80970.0,80963.0,0.4843972]
[1744345551089,0.061794,80969.0,80963.0,0.4843972]
[1744345551289,0.1235922,80967.0,80963.0,0.4843972]
[1744345552390,0.1235926,80966.0,80963.0,0.4843972]
[1744345553493,0.1235945,80965.0,80963.0,0.4843972]
[1744345553796,0.0617933,80970.0,80963.0,0.4843972]
[1744345553985,0.0617903,80974.0,80963.0,0.4843972]
[1744345554293,0.1235929,80966.0,80963.0,0.4843972]
[1744345554489,0.0617943,80969.0,80963.0,0.4843972]
[1744345555388,0.1853896,80966.0,80963.0,0.4843972]
[1744345555597,0.1235946,80965.0,80963.0,0.4843972]
[1744345555797,0.0617957,80967.0,80963.0,0.4843972]
[1744345556187,0.123593,80966.0,80963.0,0.4843972]
[1744345556388,0.0617957,80967.0,80963.0,0.4843972]
[1744345556587,0.1235943,80965.0,80963.0,0.4843972]
[1744345556787,0.0617948,80968.0,80963.0,0.4843972]
[1744345556997,0.0617943,80969.0,80963.0,0.4843972]
[1744345557299,0.0617929,80971.0,80963.0,0.4843972]
[1744345557492,0.0617838,80983.0,80976.0,0.1235773]
[1744345557692,0.1235758,80977.0,80976.0,0.1235773]
[1744345562295,0.123588,80969.0,80968.0,0.00018529]
[1744345562496,0.123588,80969.0,80968.0,0.01704822]
[1744345562693,0.123588,80969.0,80968.0,0.00018529]
[1744345562893,0.123588,80969.0,80968.0,0.12377479]
[1744345566403,0.123588,80969.0,80968.0,0.48457479]
[1744345566703,0.0617919,80972.0,80971.0,0.1235849]
[1744345568397,0.1853655,80977.0,80976.0,0.1235773]
[1744345568606,0.12142,80979.0,80976.0,0.1235773]
[1744345568607,0.08852,80979.0,80978.0,0.1235743]
[1744345568897,0.2736205,80981.0,80980.0,0.1235712]
[1744345569302,0.3971902,80981.0,80980.0,0.1235712]
[1744345569499,0.2120497,80981.0,80980.0,0.1235712]
[1744345571800,0.2421497,80981.0,80980.0,0.1235712]
[1744345571997,0.2421497,80981.0,80980.0,0.033]
[1744345572401,0.1235712,80980.0,80979.0,0.0318]
[1744345572802,0.1536712,80980.0,80979.0,0.0318]
[1744345573003,0.1843712,80980.0,80979.0,0.0318]
[1744345575817,0.1843712,80980.0,80979.0,0.1553727]
[1744345576102,0.1536712,80980.0,80979.0,0.1553727]
[1744345576600,0.0617826,80984.0,80981.0,0.0617842]
[1744345576809,0.0617826,80984.0,80983.0,0.1235666]
[1744345577000,0.0948826,80984.0,80983.0,0.1235666]
[1744345577202,0.0948826,80984.0,80983.0,0.1859666]
[1744345579008,0.1262826,80984.0,80983.0,0.1859666]
[1744345586906,0.0617826,80984.0,80983.0,0.1859666]
[1744345587112,0.0617826,80984.0,80983.0,0.2167666]
[1744345587513,0.0617826,80984.0,80983.0,0.1859666]
[1744345587811,0.1237826,80984.0,80983.0,0.1859666]
[1744345588809,0.1237826,80984.0,80983.0,0.0318]
[1744345590514,0.1237826,80984.0,80983.0,0.1553666]
[1744345593709,0.1237826,80984.0,80983.0,0.0318]
[1744345594113,0.1237826,80984.0,80983.0,0.1553666]
[1744345598523,0.0617826,80984.0,80983.0,0.1553666]
[1744345598924,0.0949826,80984.0,80983.0,0.1553666]
[1744345599121,0.0332,80984.0,80983.0,0.1553666]
[1744345599423,0.1567651,80984.0,80983.0,0.1553666]
[1744345600228,0.00018517,80985.0,80983.0,0.1553666]
[1744345600229,0.00018517,80985.0,80984.0,0.1235651]
[1744345600422,0.00018517,80985.0,80984.0,0.1552651]
[1744345600819,0.00018517,80985.0,80984.0,0.4052651]
[1744345601622,0.00018517,80985.0,80984.0,0.1552651]
[1744345603627,0.0004,80994.0,80993.0,0.1235514]
[1744345603923,0.0004,80994.0,80993.0,0.8451514]
[1744345604531,0.0004,80994.0,80993.0,0.9082514]
[1744345609426,0.0004,80994.0,80993.0,0.1866514]
[1744345609630,0.0004,80994.0,80993.0,0.9082514]
[1744345617343,0.0313,81005.0,81004.0,0.1235346]
[1744345617542,0.0313,81005.0,81004.0,0.4843346]
[1744345618341,0.0313,81005.0,81004.0,0.5476346]
[1744345618840,0.0324,81006.0,81005.0,0.1235331]
[1744345619040,0.0004,81018.0,81017.0,0.1235148]
[1744345622844,0.0004,81018.0,81017.0,0.13271806]
[1744345627650,0.8406256,81059.0,81041.0,0.1234782]
[1744345627850,0.185225,81039.0,81036.0,0.0617414]
[1744345628154,0.273585,81039.0,81038.0,0.1234793]
[1744345628739,0.08836,81039.0,81038.0,0.1234793]
[1744345628948,0.1234797,81040.0,81039.0,0.1852181]
[1744345629145,0.2118397,81040.0,81039.0,0.1852181]
[1744345629351,0.1234797,81040.0,81039.0,0.1852181]
[1744345629652,0.08836,81040.0,81039.0,0.1852181]
[1744345630151,0.2118397,81040.0,81039.0,0.0617399]
[1744345630950,0.3085397,81040.0,81039.0,0.0617399]
[1744345631254,0.3085402,81040.0,81039.0,0.1234812]
[1744345632553,0.2201802,81040.0,81039.0,0.1234812]
[1744345632754,0.3087402,81040.0,81039.0,0.1234812]
[1744345634452,0.1234843,81038.0,81037.0,0.1234837]
[1744345634854,0.1870843,81038.0,81037.0,0.1234837]
[1744345635755,0.1234873,81036.0,81035.0,0.1234869]
[1744345636253,0.1870873,81036.0,81035.0,0.1234869]
[1744345637250,0.0636,81036.0,81035.0,0.1234869]
[1744345637456,0.1870858,81036.0,81035.0,0.1234869]
[1744345638056,0.1870858,81036.0,81035.0,0.1551869]
[1744345638650,0.0636,81036.0,81035.0,0.1551869]
[1744345638855,0.0004,81042.0,81041.0,0.1234782]
[1744345639253,0.0004,81042.0,81041.0,0.4842782]
[1744345639557,0.1238767,81042.0,81041.0,0.5476782]
[1744345639957,0.1238767,81042.0,81041.0,0.5147782]
[1744345640161,0.1541767,81042.0,81041.0,0.5147782]
[1744345642460,0.1541767,81042.0,81041.0,0.1539782]
[1744345643561,0.1541767,81042.0,81041.0,0.1865782]
[1744345643763,0.1234782,81041.0,81040.0,0.3608]
[1744345644064,0.1553782,81041.0,81040.0,0.3608]
[1744345644958,0.1553782,81041.0,81040.0,0.4842797]
[1744345645158,0.1553782,81041.0,81040.0,0.5160797]
[1744345650267,0.1234782,81041.0,81040.0,0.5160797]
[1744345652666,0.1234782,81041.0,81040.0,0.1552797]
[1744345655366,0.1234782,81041.0,81040.0,0.18574616]
[1744345657373,0.1234782,81041.0,81040.0,0.1552797]
[1744345658171,0.1234782,81041.0,81040.0,0.1724126]
[1744345659676,0.1234782,81041.0,81040.0,0.0489329]
[1744345659972,0.1539782,81041.0,81040.0,0.0489329]
[1744345660161,0.1539782,81041.0,81040.0,0.1552797]
[1744345660466,0.1539782,81041.0,81040.0,0.0318]
[1744345660974,0.1539782,81041.0,81040.0,0.1552797]
[1744345666087,0.1539782,81041.0,81040.0,0.0318]
[1744345666388,0.1234889,81034.0,81033.0,0.00018517]
[1744345667490,0.5499889,81034.0,81033.0,0.00018517]
[1744345667679,0.0617488,81029.0,81025.0,0.29319083]
[1744345667884,0.0617488,81029.0,81017.0,0.36648854]
[1744345667885,0.0617529,81023.0,81017.0,0.36648854]
[1744345668080,0.1235132,81018.0,81017.0,0.36648854]
[1744345668286,0.2118332,81018.0,81017.0,0.36648854]
[1744345668488,0.2775332,81018.0,81017.0,0.36648854]
[1744345669594,0.41619281,81018.0,81009.0,0.43997141]
[1744345669783,0.1235361,81003.0,81002.0,0.54692304]
[1744345669987,0.2118561,81003.0,81002.0,0.54692304]
[1744345670686,0.2763561,81003.0,81002.0,0.54692304]
[1744345670994,0.2763561,81003.0,81002.0,0.51632304]
[1744345671995,0.6371561,81003.0,81002.0,1e-08]
[1744345672195,0.1235453,80997.0,80996.0,0.0306]
[1744345672696,0.1235468,80996.0,80995.0,0.00049385]
[1744345672895,0.5151468,80996.0,80995.0,0.00049385]
[1744345673294,0.5151468,80996.0,80994.0,0.00018517]
[1744345673295,0.1235483,80995.0,80994.0,0.00018517]
[1744345673593,0.1549483,80995.0,80994.0,0.00018517]
[1744345673796,0.1857483,80995.0,80994.0,0.00018517]
[1744345674391,0.19497474,80995.0,80994.0,0.00018517]
[1744345674587,0.1857483,80995.0,80994.0,0.00018517]
[1744345674894,0.0617703,81000.0,80994.0,0.00018517]
[1744345675094,0.12371937,81005.0,81004.0,0.1235346]
[1744345675294,0.12371937,81005.0,81004.0,0.4843346]
[1744345675997,0.12371937,81005.0,81004.0,0.5766346]
[1744345676693,0.22173897,81012.0,81008.0,0.0617641]
[1744345676898,0.22173897,81012.0,81011.0,0.4843239]
[1744345677094,0.34526137,81012.0,81011.0,0.4843239]
[1744345678196,0.22173897,81012.0,81011.0,0.4843239]
[1744345678689,0.00018479,81020.0,81017.0,0.1235148]
[1744345679096,0.00018479,81020.0,81017.0,0.4050148]
[1744345680402,0.00018479,81020.0,81017.0,0.41409799]
[1744345681099,0.1239132,81018.0,81017.0,0.16409799]
[1744345681305,0.1239132,81018.0,81017.0,0.1550148]
[1744345681508,0.0004,81018.0,81017.0,0.1550148]
[1744345681700,0.1239132,81018.0,81017.0,0.1550148]
[1744345681906,0.0004,81018.0,81017.0,0.1879148]
[1744345685310,0.1852442,81032.0,81017.0,0.13552691]
[1744345685510,0.1852442,81032.0,81031.0,0.4842919]
[1744345686615,0.1852442,81032.0,81031.0,0.5508919]
[1744345687613,0.0617442,81035.0,81032.0,0.0617453]
[1744345687816,0.1852331,81035.0,81034.0,0.1234889]
[1744345688014,0.1234848,81037.0,81036.0,0.1234843]
[1744345688417,0.1234848,81037.0,81036.0,0.1878843]
[1744345690011,0.1550848,81037.0,81036.0,0.1878843]
[1744345690207,0.1550848,81037.0,81036.0,0.0644]
[1744345691310,0.1850848,81037.0,81036.0,0.0644]
[1744345691518,0.1850848,81037.0,81036.0,0.1878858]
[1744345691718,0.1850848,81037.0,81036.0,0.0333]
[1744345691917,0.1234919,81032.0,81031.0,0.3608]
[1744345692111,0.1234919,81032.0,81031.0,0.4842934]
[1744345694605,0.1558919,81032.0,81031.0,0.4842934]
[1744345694807,0.1877919,81032.0,81031.0,0.4842934]
[1744345697414,0.1877919,81032.0,81031.0,0.3608]
[1744345700008,0.1103943,81040.0,81039.0,0.1234812]
[1744345700209,0.1103943,81040.0,81039.0,0.4842812]
[1744345700818,0.1103943,81040.0,81039.0,0.5465812]
[1744345701123,0.1234919,81032.0,81022.0,0.3608]
[1744345701323,0.1235041,81024.0,81022.0,0.3608]
[1744345701715,0.1235041,81024.0,81019.0,0.4843105]
[1744345702326,0.1885041,81024.0,81020.0,0.1235098]
[1744345702713,0.1885041,81024.0,81019.0,0.3608]
[1744345703124,0.1885041,81024.0,81023.0,0.12369077]
[1744345703721,0.2775041,81024.0,81023.0,0.12369077]
[1744345704931,0.2775041,81024.0,81023.0,0.00018517]
[1744345705420,0.1235239,81011.0,81006.0,0.0651]
[1744345705824,0.1235239,81011.0,81007.0,0.1235289]
[1744345706028,0.1235239,81011.0,81008.0,0.1235283]
[1744345706216,0.1869239,81011.0,81008.0,0.1235283]
[1744345707634,0.1869239,81011.0,81006.0,0.2503968]
[1744345707827,0.1869239,81011.0,81008.0,0.123528]
[1744345708634,0.1869239,81011.0,81009.0,0.1235269]
[1744345709934,0.1235254,81010.0,81009.0,0.1235269]
[1744345710433,0.1544254,81010.0,81009.0,0.1235269]
[1744345715439,0.12353,81007.0,81006.0,0.0322]
[1744345718136,0.12353,81007.0,81006.0,0.1866315]
[1744345718537,0.1852896,81010.0,81009.0,0.123527]
[1744345718733,0.0617628,81010.0,81009.0,0.123527]
[1744345725743,0.0617596,81015.0,81009.0,0.0617628]
[1744345725945,0.17259731,81016.0,81015.0,0.1235178]
[1744345726246,0.11083921,81016.0,81015.0,0.1235178]
[1744345726544,0.23435551,81016.0,81015.0,0.2185178]
[1744345727440,0.00018517,81019.0,81018.0,0.1235132]
[1744345730748,0.00018517,81019.0,81018.0,0.1857132]
[1744345731332,0.00018517,81019.0,81018.0,0.0622]
[1744345731333,0.12369687,81019.0,81018.0,0.0622]
[1744345732346,0.12369687,81019.0,81018.0,0.1857132]
[1744345734349,0.00018517,81019.0,81018.0,0.1857132]
[1744345734645,0.12369687,81019.0,81018.0,0.1857132]
[1744345735046,0.00018517,81019.0,81018.0,0.1857132]
[1744345736845,0.00018517,81019.0,81018.0,0.5465132]
[1744345740850,0.0617412,81039.0,81029.0,0.1234965]
[1744345741048,0.0302,81036.0,81029.0,0.4842965]
[1744345742150,0.0302,81036.0,81029.0,0.5481965]
[1744345742854,0.0302,81036.0,81029.0,0.56056796]
[1744345743652,0.0303,81040.0,81034.0,0.1234889]
[1744345743857,0.22100088,81041.0,81034.0,0.4842889]
[1744345744558,0.0657,81049.0,81041.0,0.1234782]
[1744345744861,0.0657,81049.0,81041.0,0.4842782]
[1744345745247,0.18483352,81052.0,81041.0,0.4842782]
[1744345745248,0.18483352,81052.0,81051.0,0.123463]
[1744345745456,0.0617239,81061.0,81057.0,0.1234538]
[1744345745658,0.34445318,81058.0,81057.0,0.1234538]
[1744345746563,0.34445318,81058.0,81057.0,0.1889538]
[1744345749362,0.1234523,81058.0,81057.0,0.1889538]
[1744345749564,0.1255247,81060.0,81059.0,0.1234508]
[1744345749764,0.0638,81060.0,81059.0,0.1234508]
[1744345750064,0.0004,81066.0,81065.0,0.1234416]
[1744345750366,0.0004,81066.0,81065.0,0.4842416]
[1744345750554,0.0004,81066.0,81065.0,0.3608]
[1744345750555,0.1238401,81066.0,81065.0,0.3608]
[1744345750865,0.1238401,81066.0,81065.0,0.4932758]
[1744345753371,0.0004,81066.0,81065.0,0.4932758]
[1744345753772,0.1238401,81066.0,81065.0,0.5259758]
[1744345753970,0.1563401,81066.0,81065.0,0.5259758]
[1744345754873,0.0329,81066.0,81065.0,0.5259758]
[1744345755574,0.1563401,81066.0,81065.0,0.5259758]
[1744345755769,0.1563401,81066.0,81065.0,0.4932758]
[1744345767595,0.1563401,81066.0,81065.0,0.3698342]
[1744345768999,0.1563401,81066.0,81065.0,0.4932758]
[1744345777203,0.1563401,81066.0,81065.0,0.3698342]
[1744345777697,0.1563401,81066.0,81065.0,0.4932758]
[1744345777899,0.1563401,81066.0,81065.0,0.3698342]
[1744345779099,0.1563401,81066.0,81065.0,0.4932758]
[1744345780103,0.1563401,81066.0,81065.0,0.3698342]
[1744345780795,0.1563401,81066.0,81065.0,0.3608]
[1744345780999,0.1234538,81057.0,81056.0,0.07343235]
[1744345781603,0.1893538,81057.0,81056.0,0.04033235]
[1744345783806,0.1893538,81057.0,81056.0,0.0313]
[1744345786708,0.1893538,81057.0,81056.0,0.0637]
[1744345791114,0.1234519,81059.0,81058.0,0.1234508]
[1744345791606,0.1234519,81059.0,81058.0,0.1862508]
[1744345798205,0.1234519,81059.0,81058.0,0.0628]
[1744345798409,0.1562519,81059.0,81058.0,0.0628]
[1744345798610,0.1234553,81056.0,81055.0,0.00919651]
[1744345798814,0.1234584,81054.0,81053.0,0.0314]
[1744345799115,0.1234584,81054.0,81053.0,0.064]
[1744345799509,0.1234584,81054.0,81053.0,0.1874599]
[1744345799818,0.1234584,81054.0,81053.0,0.19653248]
[1744345804115,0.18502629,81068.0,81057.0,0.0617266]
[1744345804419,0.18502629,81068.0,81065.0,0.4842416]
[1744345805013,0.1234388,81067.0,81065.0,0.4842416]
[1744345805214,0.18502629,81068.0,81065.0,0.5467416]
[1744345805612,0.0004,81090.0,81065.0,1.0341]
[1744345805813,0.0004,81090.0,81089.0,0.1234051]
[1744345806015,0.0004,81090.0,81089.0,0.4842051]
[1744345806219,0.12143445,81097.0,81089.0,0.6108]
[1744345806516,0.3608,81111.0,81096.0,0.3608]
[1744345806713,0.0616953,81099.0,81096.0,0.3608]
[1744345806912,0.13646032,81110.0,81096.0,0.36997733]
[1744345807220,0.12108,81107.0,81106.0,0.1233792]
[1744345807520,0.0328,81107.0,81106.0,0.1233792]
[1744345807719,0.1561777,81107.0,81106.0,0.1233792]
[1744345808115,0.2444577,81107.0,81106.0,0.1233792]
[1744345808318,0.3103577,81107.0,81106.0,0.1233792]
[1744345809318,0.1233808,81105.0,81104.0,0.3608]
[1744345809922,0.2116608,81105.0,81104.0,0.3608]
[1744345810417,0.1233899,81099.0,81098.0,0.00018493]
[1744345810617,0.1234173,81081.0,81080.0,0.0639]
[1744345810918,0.1234102,81086.0,81083.0,0.0617064]
[1744345811114,0.0332,81085.0,81084.0,0.1564127]
[1744345811315,0.12148,81085.0,81084.0,0.1564127]
[1744345811525,0.2448912,81085.0,81084.0,0.1873127]
[1744345812313,0.1234173,81081.0,81080.0,0.49348318]
[1744345812518,0.1234173,81081.0,81080.0,0.52588318]
[1744345814129,0.1547173,81081.0,81080.0,0.52588318]
[1744345814920,0.1547173,81081.0,81080.0,0.49348318]
[1744345817524,0.0313,81081.0,81080.0,0.49348318]
[1744345817822,0.11954,81081.0,81080.0,0.52468318]
[1744345818018,0.0313,81081.0,81080.0,0.52468318]
[1744345819522,0.1547173,81081.0,81080.0,0.3608]
[1744345819716,0.0617107,81079.0,81076.0,0.00018493]
[1744345819916,0.1234234,81077.0,81076.0,0.00018493]
[1744345820416,0.2116634,81077.0,81076.0,0.00018493]
[1744345821714,0.2433634,81077.0,81076.0,0.00018493]
[1744345823727,0.1551234,81077.0,81076.0,0.00018493]
[1744345824027,0.2742034,81077.0,81076.0,0.00018493]
[1744345827027,0.1234371,81068.0,81064.0,0.3608]
[1744345827424,0.1234371,81068.0,81065.0,0.00936741]
[1744345827821,0.1869371,81068.0,81065.0,0.00936741]
[1744345828420,0.1869371,81068.0,81064.0,0.3608]
[1744345828619,0.5477371,81068.0,81059.0,0.00018493]
[1744345829126,0.5477371,81068.0,81056.0,0.4225273]
[1744345829127,0.0617225,81063.0,81056.0,0.3608]
[1744345829327,0.1234538,81057.0,81056.0,0.3608]
[1744345830127,0.1870538,81057.0,81056.0,0.3608]
[1744345830736,0.2753338,81057.0,81056.0,0.3608]
[1744345836638,0.123466,81049.0,81048.0,0.00018505]
[1744345837536,0.187766,81049.0,81048.0,0.00018505]
[1744345837936,0.1234736,81044.0,81043.0,0.00049356]
[1744345838136,0.1234904,81033.0,81032.0,0.0308]
[1744345838925,0.1234965,81029.0,81028.0,0.3608]
[1744345839125,0.1234965,81029.0,81028.0,0.3916]
[1744345840142,0.1234965,81029.0,81028.0,0.3608]
[1744345840335,0.2117765,81029.0,81028.0,0.3608]
[1744345842437,0.2117765,81029.0,81028.0,0.484298]
[1744345842935,0.2117765,81029.0,81028.0,0.3608]
[1744345844946,0.1234965,81029.0,81028.0,0.484298]
[1744345845145,0.2118165,81029.0,81028.0,0.515098]
[1744345845444,0.1234947,81031.0,81030.0,0.1234934]
[1744345845753,0.2118147,81031.0,81030.0,0.1234934]
[1744345846042,0.2118147,81031.0,81030.0,0.1850934]
[1744345848144,0.2118147,81031.0,81030.0,0.5458934]
[1744345850942,0.2118147,81031.0,81030.0,0.1850934]
[1744345851140,0.2118147,81031.0,81030.0,0.5458934]
[1744345853938,0.1234947,81031.0,81030.0,0.5458934]
[1744345854139,0.2118147,81031.0,81030.0,0.5458934]
[1744345855348,0.2440147,81031.0,81030.0,0.5458934]
[1744345857541,0.2759147,81031.0,81030.0,0.5458934]
[1744345862058,0.2759147,81031.0,81030.0,0.3916]
[1744345862454,0.1235026,81025.0,81024.0,0.00018505]
[1744345863057,0.2118226,81025.0,81024.0,0.00018505]
[1744345864063,0.1235056,81023.0,81022.0,0.21930632]
[1744345864263,0.1235102,81020.0,81019.0,0.00049371]
[1744345864657,0.1235239,81011.0,81010.0,0.36614489]
[1744345864856,0.2118439,81011.0,81010.0,0.36614489]
[1744345865454,0.1235285,81008.0,81007.0,0.36614489]
[1744345867660,0.13290524,81008.0,81007.0,0.36614489]
[1744345868975,0.14510357,81008.0,81007.0,0.36614489]
[1744345869768,0.1235361,81003.0,81002.0,0.00018505]
[1744345869970,0.4843361,81003.0,81002.0,0.00018505]
[1744345870567,0.5481361,81003.0,81002.0,0.00018505]
[1744345871480,0.6364561,81003.0,81002.0,0.12372265]
[1744345872372,0.5481361,81003.0,81002.0,0.12372265]
[1744345872573,0.44912,81003.0,81002.0,0.18682265]
[1744345873076,0.1235287,81008.0,81004.0,0.0617666]
[1744345873276,0.1852931,81008.0,81007.0,0.12353]
[1744345873575,0.2736131,81008.0,81007.0,0.12353]
[1744345877174,0.1852931,81008.0,81007.0,0.12353]
[1744345877376,0.2736531,81008.0,81007.0,0.12353]
[1744345878079,0.1235315,81006.0,81005.0,0.0315]
[1744345878476,0.1235361,81003.0,81002.0,0.00018505]
[1744345878875,0.4843361,81003.0,81002.0,0.00018505]
[1744345880481,0.4843361,81003.0,81002.0,0.12372265]
[1744345880681,0.1235361,81003.0,81002.0,0.15622265]
[1744345883182,0.1852964,81007.0,81006.0,0.1235315]
[1744345883371,0.2736164,81007.0,81006.0,0.1235315]
[1744345883576,0.1561261,81010.0,81009.0,0.123527]
[1744345884475,0.1866261,81010.0,81009.0,0.123527]
[1744345884676,0.061766,81006.0,81000.0,0.1]
[1744345884871,0.1235361,81003.0,81002.0,0.12372145]
[1744345885076,0.1235361,81003.0,81002.0,0.15382145]
[1744345887386,0.1235361,81003.0,81002.0,0.18522145]
[1744345888481,0.1235361,81003.0,81002.0,0.00018505]
[1744345888686,0.1235453,80997.0,80996.0,0.0301]
[1744345888983,0.2118653,80997.0,80996.0,0.0301]
[1744345889184,0.2118653,80997.0,80996.0,0.0615]
[1744345889386,0.3608,81003.0,80999.0,0.0617709]
[1744345889582,0.5461076,81003.0,81002.0,0.1235376]
[1744345890284,0.6344276,81003.0,81002.0,0.1235376]
[1744345891783,0.1235392,81001.0,81000.0,0.0629]
[1744345891982,0.1235392,81001.0,81000.0,0.1864407]
[1744345892482,0.1562392,81001.0,81000.0,0.1864407]
[1744345893083,0.2445592,81001.0,81000.0,0.1864407]
[1744345893881,0.1562392,81001.0,81000.0,0.1864407]
[1744345894390,0.1562392,81001.0,81000.0,0.1536407]
[1744345894591,0.1893392,81001.0,81000.0,0.1536407]
[1744345895184,0.1893392,81001.0,81000.0,0.0301]
[1744345895392,0.1235468,80996.0,80995.0,0.00049385]
[1744345895590,0.4843468,80996.0,80995.0,0.12404085]
[1744345896793,0.5173468,80996.0,80995.0,0.12404085]
[1744345896995,0.5173468,80996.0,80995.0,0.00049385]
[1744345897202,0.1235498,80994.0,80993.0,0.00012452]
[1744345897795,0.1235498,80994.0,80993.0,0.03232452]
[1744345898096,0.1235498,80994.0,80993.0,0.00012452]
[1744345898097,0.1876498,80994.0,80993.0,0.00012452]
[1744345898395,0.1676498,80994.0,80993.0,0.00012452]
[1744345902096,0.1235666,80983.0,80982.0,0.061784]
[1744345902297,0.4843666,80983.0,80982.0,0.061784]
[1744345902494,0.1235697,80981.0,80980.0,0.0322]
[1744345902689,0.1235773,80976.0,80975.0,0.1235777]
[1744345903396,0.1235773,80976.0,80975.0,0.13285717]
[1744345903898,0.1546773,80976.0,80975.0,0.13285717]
[1744345905800,0.1546773,80976.0,80975.0,0.11285717]
[1744345906393,0.1546773,80976.0,80975.0,0.1035777]
[1744345907196,0.1235804,80974.0,80973.0,0.1540812]
[1744345907400,0.1235804,80974.0,80973.0,0.0305]
[1744345908193,0.4843804,80974.0,80973.0,0.1540819]
[1744345910002,0.1235804,80974.0,80973.0,0.1540819]
[1744345910195,0.0617893,80976.0,80975.0,0.1235788]
[1744345910397,0.00018517,80984.0,80983.0,0.1235666]
[1744345911194,0.00018517,80984.0,80983.0,0.1880666]
[1744345915010,0.12375027,80984.0,80983.0,0.1880666]
[1744345921514,0.12375027,80984.0,80983.0,0.1555666]
[1744345922407,0.12375027,80984.0,80983.0,0.032]
[1744345922721,0.1235804,80974.0,80973.0,0.1235819]
[1744345922919,0.1235804,80974.0,80973.0,0.1548819]
[1744345923719,0.1865804,80974.0,80973.0,0.1548819]
[1744345924016,0.1865804,80974.0,80973.0,0.0313]
[1744345924215,0.1865804,80974.0,80973.0,0.1548819]
[1744345931016,0.1235834,80972.0,80971.0,0.00982211]
[1744345931412,0.1235834,80972.0,80971.0,0.000494]
[1744345932423,0.1887834,80972.0,80971.0,0.000494]
[1744345933414,0.1235987,80962.0,80960.0,0.1236007]
[1744345933621,0.4843987,80962.0,80960.0,0.1236007]
[1744345934121,0.4843987,80962.0,80961.0,0.41810806]
[1744345934326,0.5486987,80962.0,80961.0,0.41810806]
[1744345934819,0.4251,80962.0,80961.0,0.41810806]
[1744345935121,0.0617883,80977.0,80971.0,0.1235834]
[1744345935328,0.0617883,80977.0,80961.0,0.29450786]
[1744345935329,0.11099269,80980.0,80979.0,0.1235727]
[1744345936017,0.11099269,80980.0,80979.0,0.1544727]
[1744345936617,0.11099269,80980.0,80979.0,0.17090922]
[1744345936824,0.0617835,80983.0,80982.0,0.1235682]
[1744345937129,0.1240835,80983.0,80982.0,0.1235682]
[1744345937421,0.0623,80983.0,80982.0,0.1235682]
[1744345937816,0.22101181,80985.0,80983.0,0.1235666]
[1744345938726,0.03058517,80984.0,80983.0,0.1235666]
[1744345939225,0.15415027,80984.0,80983.0,0.1235666]
[1744345939729,0.18615027,80984.0,80983.0,0.1235666]
[1744345944826,0.18615027,80984.0,80981.0,0.0617842]
[1744345944827,0.1235682,80982.0,80981.0,0.0617842]
[1744345946927,0.0617862,80980.0,80974.0,0.0617898]
[1744345947124,0.1235819,80975.0,80974.0,0.1853641]
[1744345947323,0.0617923,80972.0,80969.0,0.1853779]
[1744345947527,0.1235865,80970.0,80969.0,0.1853779]
[1744345948216,0.1871865,80970.0,80969.0,0.1853779]
[1744345948423,0.0636,80970.0,80969.0,0.1853779]
[1744345948725,0.08824,80977.0,80976.0,0.1235773]
[1744345948925,0.00018517,80984.0,80983.0,0.1235666]
[1744345950027,0.48455027,80984.0,80983.0,0.1235666]
[1744345950930,0.1235697,80982.0,80981.0,0.1235693]
[1744345951329,0.1853917,80969.0,80968.0,0.1853757]
[1744345951829,0.5461694,80976.0,80975.0,0.1235788]
[1744345952025,0.0326,80981.0,80980.0,0.1235712]
[1744345952229,0.42276787,80984.0,80983.0,0.1235666]
[1744345957031,0.06196787,80984.0,80983.0,0.1235666]
[1744345957332,0.00018517,80984.0,80983.0,0.4843666]
[1744345957525,0.00018517,80984.0,80983.0,0.5475666]
[1744345957726,0.00018517,80984.0,80983.0,0.56397698]
[1744345958134,0.00018517,80984.0,80983.0,0.53207698]
[1744345959124,0.12375027,80984.0,80983.0,0.53207698]
[1744345959332,0.12375027,80984.0,80983.0,0.17127698]
[1744345960034,0.12375027,80984.0,80983.0,0.1548666]
[1744345961521,0.00018517,80984.0,80983.0,0.1548666]
[1744345961727,0.00018517,80984.0,80983.0,0.53210162]
[1744345961937,0.12375027,80984.0,80983.0,0.53210162]
[1744345962434,0.12375027,80984.0,80983.0,0.17130162]
[1744345962736,0.12375027,80984.0,80983.0,0.53210162]
[1744345962933,0.00018517,80984.0,80983.0,0.53210162]
[1744345963234,0.00018517,80984.0,80983.0,0.54451821]
[1744345963432,0.00018517,80984.0,80983.0,0.53210162]